[Event "Titled Tuesday Blitz May 31 Late 2022"]
[White "Ivic, Velimir"]
[Black "Norowitz, Yaacov"]
[WhiteFideId "950122"]
[BlackFideId "2024799"]
[WhiteElo "2610"]
[BlackElo "2412"]
[Result "1-0"]
[Round "08"]
[TimeControl "180+1"]
[Date "2022.05.31"]
[WhiteClock "0:00:48"]
[BlackClock "0:00:03"]

1. c4 {[%clk 0:03:00]}  b6 {[%clk 0:02:49]} 2. Nc3 {[%clk 0:02:58]}  c5 {[%clk 0:02:48]} 3. Nf3 {[%clk 0:02:57]}  Bb7 {[%clk 0:02:48]} 4. g3 {[%clk 0:02:56]}  Bxf3 {[%clk 0:02:48]} 5. exf3 {[%clk 0:02:57]}  Nc6 {[%clk 0:02:48]} 6. Bg2 {[%clk 0:02:58]}  g6 {[%clk 0:02:49]} 7. O-O {[%clk 0:02:57]}  Bg7 {[%clk 0:02:49]} 8. f4 {[%clk 0:02:57]}  e6 {[%clk 0:02:50]} 9. Ne4 {[%clk 0:02:55]}  Qc7 {[%clk 0:02:43]} 10. Rb1 {[%clk 0:02:47]}  Nge7 {[%clk 0:02:43]} 11. d3 {[%clk 0:02:37]}  O-O {[%clk 0:02:39]} 12. a3 {[%clk 0:02:38]}  d5 {[%clk 0:02:37]} 13. Nc3 {[%clk 0:02:37]}  dxc4 {[%clk 0:02:29]} 14. dxc4 {[%clk 0:02:37]}  Rad8 {[%clk 0:02:28]} 15. Qa4 {[%clk 0:02:31]}  Bxc3 {[%clk 0:02:26]} 16. bxc3 {[%clk 0:02:31]}  Qd7 {[%clk 0:02:21]} 17. f5 {[%clk 0:02:14]}  Na5 {[%clk 0:02:13]} 18. Qxd7 {[%clk 0:02:05]}  Rxd7 {[%clk 0:02:13]} 19. fxe6 {[%clk 0:02:06]}  fxe6 {[%clk 0:02:13]} 20. Bh6 {[%clk 0:02:06]}  Rfd8 {[%clk 0:02:02]} 21. Rbe1 {[%clk 0:02:02]}  Kf7 {[%clk 0:01:59]} 22. Bg5 {[%clk 0:02:01]}  Re8 {[%clk 0:01:31]} 23. Re4 {[%clk 0:02:01]}  Nf5 {[%clk 0:01:27]} 24. Rfe1 {[%clk 0:01:57]}  h6 {[%clk 0:01:22]} 25. Bc1 {[%clk 0:01:53]}  h5 {[%clk 0:01:16]} 26. h3 {[%clk 0:01:51]}  Rd3 {[%clk 0:00:45]} 27. Rf4 {[%clk 0:01:30]}  e5 {[%clk 0:00:34]} 28. Rfe4 {[%clk 0:01:24]}  Rxc3 {[%clk 0:00:26]} 29. Bb2 {[%clk 0:01:25]}  Rb3 {[%clk 0:00:20]} 30. Rxe5 {[%clk 0:01:22]}  Rxe5 {[%clk 0:00:19]} 31. Bxe5 {[%clk 0:01:22]}  Ne7 {[%clk 0:00:17]} 32. Bd6 {[%clk 0:01:13]}  Nf5 {[%clk 0:00:15]} 33. Bd5+ {[%clk 0:01:12]}  Kf6 {[%clk 0:00:14]} 34. Re6+ {[%clk 0:01:12]}  Kg7 {[%clk 0:00:14]} 35. Be5+ {[%clk 0:01:11]}  Kh7 {[%clk 0:00:13]} 36. g4 {[%clk 0:01:09]}  hxg4 {[%clk 0:00:13]} 37. hxg4 {[%clk 0:01:10]}  Nd4 {[%clk 0:00:13]} 38. Re7+ {[%clk 0:01:08]}  Kh6 {[%clk 0:00:13]} 39. Bf6 {[%clk 0:01:08]}  Nf3+ {[%clk 0:00:06]} 40. Kg2 {[%clk 0:01:07]}  Ng5 {[%clk 0:00:04]} 41. Bg7+ {[%clk 0:00:48]}  Kh7 {[%clk 0:00:03]} 42. Be5+ {[%clk 0:00:47]}  Kh6 {[%clk 0:00:03]} 43. Bf4 {[%clk 0:00:48]} 1-0


[Site "https://www.chess.com"]

[Event "Titled Tuesday Blitz May 31 Late 2022"]
[White "Jones, Gawain C B"]
[Black "Harvey, Marcus R"]
[WhiteFideId "409561"]
[BlackFideId "400092"]
[WhiteElo "2657"]
[BlackElo "2485"]
[Result "1-0"]
[Round "08"]
[TimeControl "180+1"]
[Date "2022.05.31"]
[WhiteClock "0:01:25"]
[BlackClock "0:00:41"]

1. a3 {[%clk 0:03:00]}  d5 {[%clk 0:02:59]} 2. Nf3 {[%clk 0:03:00]}  g6 {[%clk 0:02:59]} 3. c4 {[%clk 0:02:58]}  dxc4 {[%clk 0:02:57]} 4. e3 {[%clk 0:02:58]}  Bg7 {[%clk 0:02:57]} 5. Bxc4 {[%clk 0:02:57]}  Nf6 {[%clk 0:02:57]} 6. d4 {[%clk 0:02:56]}  O-O {[%clk 0:02:57]} 7. O-O {[%clk 0:02:56]}  a6 {[%clk 0:02:54]} 8. Nc3 {[%clk 0:02:54]}  b5 {[%clk 0:02:54]} 9. Ba2 {[%clk 0:02:53]}  Bb7 {[%clk 0:02:54]} 10. Ne5 {[%clk 0:02:53]}  Nbd7 {[%clk 0:02:53]} 11. f4 {[%clk 0:02:53]}  Nxe5 {[%clk 0:02:52]} 12. fxe5 {[%clk 0:02:52]}  Nd5 {[%clk 0:02:52]} 13. Qf3 {[%clk 0:02:47]}  e6 {[%clk 0:02:42]} 14. Ne4 {[%clk 0:02:45]}  Kh8 {[%clk 0:02:28]} 15. Nc5 {[%clk 0:02:41]}  Bc6 {[%clk 0:02:26]} 16. e4 {[%clk 0:02:39]}  Nb6 {[%clk 0:02:22]} 17. Be3 {[%clk 0:02:36]}  Nc4 {[%clk 0:02:12]} 18. Rf2 {[%clk 0:02:18]}  Nxe3 {[%clk 0:02:07]} 19. Qxe3 {[%clk 0:02:17]}  Qe7 {[%clk 0:01:57]} 20. Raf1 {[%clk 0:02:15]}  a5 {[%clk 0:01:51]} 21. d5 {[%clk 0:02:11]}  Bd7 {[%clk 0:01:45]} 22. Nxd7 {[%clk 0:02:00]}  Qxd7 {[%clk 0:01:45]} 23. Qc5 {[%clk 0:01:39]}  exd5 {[%clk 0:01:21]} 24. Bxd5 {[%clk 0:01:34]}  Rad8 {[%clk 0:01:10]} 25. e6 {[%clk 0:01:32]}  Qd6 {[%clk 0:01:00]} 26. Qxd6 {[%clk 0:01:32]}  Rxd6 {[%clk 0:01:01]} 27. e7 {[%clk 0:01:32]}  Re8 {[%clk 0:00:59]} 28. Rxf7 {[%clk 0:01:32]}  c6 {[%clk 0:00:42]} 29. Rf8+ {[%clk 0:01:25]}  Bxf8 {[%clk 0:00:41]} 30. Rxf8+ {[%clk 0:01:25]} 1-0


[Site "https://www.chess.com"]

[Event "Titled Tuesday Blitz May 31 Late 2022"]
[White "Jovic, Stevan"]
[Black "Jeet, Jain"]
[WhiteFideId "923206"]
[BlackFideId "5073022"]
[WhiteElo "2203"]
[BlackElo "2028"]
[Result "1-0"]
[Round "08"]
[TimeControl "180+1"]
[Date "2022.06.01"]
[WhiteClock "0:00:35"]
[BlackClock "0:00:10"]

1. d4 {[%clk 0:03:00]}  d5 {[%clk 0:02:57]} 2. c4 {[%clk 0:03:00]}  c6 {[%clk 0:02:56]} 3. Nc3 {[%clk 0:03:00]}  e6 {[%clk 0:02:56]} 4. e3 {[%clk 0:03:00]}  f5 {[%clk 0:02:56]} 5. f4 {[%clk 0:03:00]}  Nf6 {[%clk 0:02:56]} 6. Nf3 {[%clk 0:03:00]}  Be7 {[%clk 0:02:56]} 7. Bd3 {[%clk 0:03:01]}  O-O {[%clk 0:02:56]} 8. O-O {[%clk 0:03:02]}  Ne4 {[%clk 0:02:56]} 9. Bxe4 {[%clk 0:03:01]}  fxe4 {[%clk 0:02:56]} 10. Ne5 {[%clk 0:03:02]}  Nd7 {[%clk 0:02:56]} 11. Nxd7 {[%clk 0:02:56]}  Bxd7 {[%clk 0:02:56]} 12. b3 {[%clk 0:02:55]}  Be8 {[%clk 0:02:55]} 13. Bd2 {[%clk 0:02:53]}  Bg6 {[%clk 0:02:53]} 14. Kh1 {[%clk 0:02:52]}  h5 {[%clk 0:02:52]} 15. Qe2 {[%clk 0:02:49]}  Kh7 {[%clk 0:02:51]} 16. Rg1 {[%clk 0:02:49]}  h4 {[%clk 0:02:49]} 17. g4 {[%clk 0:02:42]}  hxg3 {[%clk 0:02:41]} 18. hxg3 {[%clk 0:02:43]}  Rh8 {[%clk 0:02:39]} 19. Kg2 {[%clk 0:02:43]}  Kg8 {[%clk 0:02:37]} 20. Rh1 {[%clk 0:02:43]}  Kf7 {[%clk 0:02:37]} 21. g4 {[%clk 0:02:39]}  Qd7 {[%clk 0:02:36]} 22. Qf2 {[%clk 0:02:38]}  Raf8 {[%clk 0:02:31]} 23. Qg3 {[%clk 0:02:35]}  Ke8 {[%clk 0:02:27]} 24. Rxh8 {[%clk 0:02:34]}  Rxh8 {[%clk 0:02:27]} 25. Rh1 {[%clk 0:02:35]}  Rxh1 {[%clk 0:02:26]} 26. Kxh1 {[%clk 0:02:36]}  Bf6 {[%clk 0:02:20]} 27. c5 {[%clk 0:02:27]}  Qf7 {[%clk 0:02:11]} 28. Ne2 {[%clk 0:02:17]}  Bd8 {[%clk 0:01:59]} 29. Kg2 {[%clk 0:02:15]}  b6 {[%clk 0:01:58]} 30. b4 {[%clk 0:02:09]}  Qe7 {[%clk 0:01:50]} 31. Be1 {[%clk 0:01:57]}  Bc7 {[%clk 0:01:47]} 32. Qh3 {[%clk 0:01:57]}  bxc5 {[%clk 0:01:37]} 33. dxc5 {[%clk 0:01:55]}  e5 {[%clk 0:01:36]} 34. f5 {[%clk 0:01:54]}  Bf7 {[%clk 0:01:35]} 35. Qh8+ {[%clk 0:01:47]}  Qf8 {[%clk 0:01:35]} 36. Qxf8+ {[%clk 0:01:43]}  Kxf8 {[%clk 0:01:36]} 37. Bc3 {[%clk 0:01:38]}  Ke7 {[%clk 0:01:26]} 38. a3 {[%clk 0:01:31]}  Kf6 {[%clk 0:01:25]} 39. Be1 {[%clk 0:01:27]}  g5 {[%clk 0:01:20]} 40. Bg3 {[%clk 0:01:19]}  Be8 {[%clk 0:01:11]} 41. Kf2 {[%clk 0:01:17]}  Bd7 {[%clk 0:01:11]} 42. Nc3 {[%clk 0:01:11]}  Bc8 {[%clk 0:01:04]} 43. a4 {[%clk 0:01:06]}  Ba6 {[%clk 0:00:52]} 44. b5 {[%clk 0:01:06]}  Bb7 {[%clk 0:00:52]} 45. Ke2 {[%clk 0:00:59]}  Ba5 {[%clk 0:00:52]} 46. Be1 {[%clk 0:00:59]}  Kf7 {[%clk 0:00:44]} 47. Nxe4 {[%clk 0:00:52]}  dxe4 {[%clk 0:00:34]} 48. Bxa5 {[%clk 0:00:50]}  a6 {[%clk 0:00:32]} 49. b6 {[%clk 0:00:45]}  Kf6 {[%clk 0:00:30]} 50. Bc3 {[%clk 0:00:44]}  Bc8 {[%clk 0:00:29]} 51. Kd2 {[%clk 0:00:43]}  Bb7 {[%clk 0:00:28]} 52. Kc2 {[%clk 0:00:43]}  Bc8 {[%clk 0:00:20]} 53. Kb3 {[%clk 0:00:43]}  Bb7 {[%clk 0:00:14]} 54. Kb4 {[%clk 0:00:44]}  Bc8 {[%clk 0:00:13]} 55. Ka5 {[%clk 0:00:44]}  Bb7 {[%clk 0:00:14]} 56. Ba1 {[%clk 0:00:43]}  Kf7 {[%clk 0:00:08]} 57. Bxe5 {[%clk 0:00:36]}  Ke7 {[%clk 0:00:08]} 58. Bd6+ {[%clk 0:00:32]}  Kf6 {[%clk 0:00:08]} 59. Bc7 {[%clk 0:00:32]}  Kf7 {[%clk 0:00:08]} 60. Bd8 {[%clk 0:00:32]}  Ke8 {[%clk 0:00:08]} 61. Bxg5 {[%clk 0:00:32]}  Kf7 {[%clk 0:00:09]} 62. Bf4 {[%clk 0:00:33]}  Kf6 {[%clk 0:00:09]} 63. Kb4 {[%clk 0:00:33]}  Kf7 {[%clk 0:00:09]} 64. Kc3 {[%clk 0:00:34]}  Kf6 {[%clk 0:00:10]} 65. Kd4 {[%clk 0:00:35]} 1-0


[Site "https://www.chess.com"]

[Event "Titled Tuesday Blitz May 31 Late 2022"]
[White "Kobalia, Mikhail"]
[Black "Fiedorek, Michal"]
[WhiteFideId "4119150"]
[BlackFideId "1199528"]
[WhiteElo "2667"]
[BlackElo "1833"]
[Result "1-0"]
[Round "08"]
[TimeControl "180+1"]
[Date "2022.05.31"]
[WhiteClock "0:00:23"]
[BlackClock "0:00:01"]

1. e4 {[%clk 0:03:00]}  c5 {[%clk 0:02:55]} 2. Nf3 {[%clk 0:03:00]}  e6 {[%clk 0:02:54]} 3. g3 {[%clk 0:03:00]}  d5 {[%clk 0:02:53]} 4. exd5 {[%clk 0:03:00]}  exd5 {[%clk 0:02:52]} 5. d4 {[%clk 0:03:00]}  Nc6 {[%clk 0:02:45]} 6. Bg2 {[%clk 0:03:00]}  Bg4 {[%clk 0:02:39]} 7. O-O {[%clk 0:03:00]}  Nf6 {[%clk 0:02:33]} 8. dxc5 {[%clk 0:02:52]}  Bxc5 {[%clk 0:02:30]} 9. Re1+ {[%clk 0:02:51]}  Be7 {[%clk 0:02:31]} 10. Nc3 {[%clk 0:02:50]}  O-O {[%clk 0:02:30]} 11. h3 {[%clk 0:02:50]}  Bh5 {[%clk 0:02:25]} 12. Bf4 {[%clk 0:02:49]}  Rc8 {[%clk 0:02:21]} 13. g4 {[%clk 0:02:43]}  Bg6 {[%clk 0:02:20]} 14. Ne5 {[%clk 0:02:43]}  Bb4 {[%clk 0:01:57]} 15. Bg5 {[%clk 0:01:56]}  d4 {[%clk 0:01:29]} 16. Bxf6 {[%clk 0:01:13]}  gxf6 {[%clk 0:01:29]} 17. Nxg6 {[%clk 0:00:47]}  hxg6 {[%clk 0:01:28]} 18. a3 {[%clk 0:00:48]}  dxc3 {[%clk 0:01:08]} 19. axb4 {[%clk 0:00:47]}  cxb2 {[%clk 0:01:02]} 20. Rb1 {[%clk 0:00:46]}  Nxb4 {[%clk 0:00:53]} 21. Rxb2 {[%clk 0:00:45]}  Qxd1 {[%clk 0:00:41]} 22. Rxd1 {[%clk 0:00:44]}  a5 {[%clk 0:00:42]} 23. Rd7 {[%clk 0:00:37]}  Rxc2 {[%clk 0:00:32]} 24. Rxc2 {[%clk 0:00:36]}  Nxc2 {[%clk 0:00:33]} 25. Rxb7 {[%clk 0:00:36]}  a4 {[%clk 0:00:20]} 26. Ra7 {[%clk 0:00:34]}  a3 {[%clk 0:00:20]} 27. Be4 {[%clk 0:00:34]}  Rc8 {[%clk 0:00:20]} 28. Bd5 {[%clk 0:00:33]}  Rf8 {[%clk 0:00:10]} 29. Bc4 {[%clk 0:00:33]}  Kg7 {[%clk 0:00:05]} 30. Kg2 {[%clk 0:00:33]}  Nd4 {[%clk 0:00:03]} 31. Rxa3 {[%clk 0:00:32]}  Nc6 {[%clk 0:00:04]} 32. Bd5 {[%clk 0:00:29]}  Ne5 {[%clk 0:00:03]} 33. f4 {[%clk 0:00:29]}  Nd7 {[%clk 0:00:03]} 34. Ra7 {[%clk 0:00:29]}  Nb6 {[%clk 0:00:02]} 35. Bb3 {[%clk 0:00:29]}  Nc8 {[%clk 0:00:02]} 36. Rd7 {[%clk 0:00:28]}  Nb6 {[%clk 0:00:01]} 37. Rc7 {[%clk 0:00:28]}  Nc8 {[%clk 0:00:02]} 38. Bxf7 {[%clk 0:00:28]}  Rxf7 {[%clk 0:00:02]} 39. Rxc8 {[%clk 0:00:28]}  Ra7 {[%clk 0:00:03]} 40. Rc3 {[%clk 0:00:25]}  Ra4 {[%clk 0:00:03]} 41. Kf3 {[%clk 0:00:25]}  Kf7 {[%clk 0:00:03]} 42. h4 {[%clk 0:00:26]}  Kg7 {[%clk 0:00:03]} 43. Rd3 {[%clk 0:00:26]}  Rb4 {[%clk 0:00:03]} 44. Rd7+ {[%clk 0:00:25]}  Kg8 {[%clk 0:00:03]} 45. h5 {[%clk 0:00:24]}  gxh5 {[%clk 0:00:03]} 46. gxh5 {[%clk 0:00:24]}  Rb1 {[%clk 0:00:03]} 47. Kg4 {[%clk 0:00:25]}  Rh1 {[%clk 0:00:03]} 48. Rc7 {[%clk 0:00:22]}  Kf8 {[%clk 0:00:02]} 49. Rd7 {[%clk 0:00:22]}  Kg8 {[%clk 0:00:02]} 50. Kf5 {[%clk 0:00:22]}  Rxh5+ {[%clk 0:00:02]} 51. Kg6 {[%clk 0:00:23]}  Rh1 {[%clk 0:00:01]} 52. Rd8# {[%clk 0:00:23]} 1-0


[Site "https://www.chess.com"]

[Event "Titled Tuesday Blitz May 31 Late 2022"]
[White "Kozin, Yuri"]
[Black "Miszler, Levente"]
[WhiteFideId "4129920"]
[BlackFideId "763276"]
[WhiteElo "2565"]
[BlackElo "1966"]
[Result "1-0"]
[Round "08"]
[TimeControl "180+1"]
[Date "2022.06.01"]
[WhiteClock "0:00:11"]
[BlackClock "0:00:04"]

1. e4 {[%clk 0:03:00]}  e6 {[%clk 0:02:58]} 2. d4 {[%clk 0:03:00]}  d5 {[%clk 0:02:53]} 3. Nd2 {[%clk 0:02:59]}  f5 {[%clk 0:02:52]} 4. exd5 {[%clk 0:02:54]}  exd5 {[%clk 0:02:52]} 5. Ngf3 {[%clk 0:02:53]}  Nf6 {[%clk 0:02:52]} 6. Ne5 {[%clk 0:02:54]}  Bd6 {[%clk 0:02:52]} 7. Ndf3 {[%clk 0:02:54]}  O-O {[%clk 0:02:51]} 8. Be2 {[%clk 0:02:54]}  Ne4 {[%clk 0:02:50]} 9. O-O {[%clk 0:02:53]}  Nd7 {[%clk 0:02:49]} 10. c4 {[%clk 0:02:53]}  c6 {[%clk 0:02:48]} 11. Qb3 {[%clk 0:02:51]}  Ndf6 {[%clk 0:02:48]} 12. Bf4 {[%clk 0:02:43]}  h6 {[%clk 0:02:44]} 13. Rad1 {[%clk 0:02:36]}  g5 {[%clk 0:02:43]} 14. Bc1 {[%clk 0:02:35]}  g4 {[%clk 0:02:41]} 15. Nh4 {[%clk 0:02:28]}  Re8 {[%clk 0:02:30]} 16. Bxh6 {[%clk 0:02:23]}  Bxe5 {[%clk 0:02:25]} 17. dxe5 {[%clk 0:02:23]}  Rxe5 {[%clk 0:02:25]} 18. Bf4 {[%clk 0:02:19]}  Re7 {[%clk 0:02:21]} 19. cxd5 {[%clk 0:02:13]}  cxd5 {[%clk 0:02:16]} 20. Ng6 {[%clk 0:01:53]}  Rh7 {[%clk 0:02:12]} 21. Be5 {[%clk 0:01:37]}  Qe8 {[%clk 0:02:03]} 22. Bxf6 {[%clk 0:01:36]}  Nxf6 {[%clk 0:02:03]} 23. Nf4 {[%clk 0:01:30]}  Qe5 {[%clk 0:01:10]} 24. g3 {[%clk 0:01:13]}  Kg7 {[%clk 0:01:03]} 25. Rfe1 {[%clk 0:01:11]}  Bd7 {[%clk 0:00:46]} 26. Qxb7 {[%clk 0:01:02]}  Rah8 {[%clk 0:00:43]} 27. h4 {[%clk 0:00:48]}  Rxh4 {[%clk 0:00:42]} 28. gxh4 {[%clk 0:00:44]}  Qxf4 {[%clk 0:00:42]} 29. Rxd5 {[%clk 0:00:35]}  Rxh4 {[%clk 0:00:35]} 30. Rxd7+ {[%clk 0:00:33]}  Nxd7 {[%clk 0:00:33]} 31. Qxd7+ {[%clk 0:00:34]}  Kh6 {[%clk 0:00:28]} 32. Qc6+ {[%clk 0:00:33]}  Kg5 {[%clk 0:00:22]} 33. Qg2 {[%clk 0:00:32]}  Qd2 {[%clk 0:00:19]} 34. f4+ {[%clk 0:00:22]}  Kxf4 {[%clk 0:00:13]} 35. Rf1+ {[%clk 0:00:20]}  Kg5 {[%clk 0:00:12]} 36. Qf2 {[%clk 0:00:18]}  Qd5 {[%clk 0:00:07]} 37. Qf4+ {[%clk 0:00:17]}  Kg6 {[%clk 0:00:07]} 38. Bf3 {[%clk 0:00:13]}  Qc5+ {[%clk 0:00:06]} 39. Rf2 {[%clk 0:00:11]}  gxf3 {[%clk 0:00:02]} 40. Qxh4 {[%clk 0:00:11]}  Qc1+ {[%clk 0:00:03]} 41. Kh2 {[%clk 0:00:11]}  Qe3 {[%clk 0:00:02]} 42. Qg3+ {[%clk 0:00:11]}  Kf6 {[%clk 0:00:02]} 43. Qxf3 {[%clk 0:00:12]}  Qh6+ {[%clk 0:00:03]} 44. Kg2 {[%clk 0:00:12]}  Qg5+ {[%clk 0:00:03]} 45. Qg3 {[%clk 0:00:12]}  Qc1 {[%clk 0:00:01]} 46. Qd6+ {[%clk 0:00:12]}  Kf7 {[%clk 0:00:02]} 47. Rxf5+ {[%clk 0:00:11]}  Kg7 {[%clk 0:00:03]} 48. Qf6+ {[%clk 0:00:11]}  Kg8 {[%clk 0:00:03]} 49. Rg5+ {[%clk 0:00:10]}  Kh7 {[%clk 0:00:03]} 50. Qg6+ {[%clk 0:00:10]}  Kh8 {[%clk 0:00:04]} 51. Qg7# {[%clk 0:00:11]} 1-0


[Site "https://www.chess.com"]

[Event "Titled Tuesday Blitz May 31 Late 2022"]
[White "Martic, Ivan"]
[Black "Avazkhonov, Alikhon"]
[WhiteFideId "929301"]
[BlackFideId "14208504"]
[WhiteElo "2317"]
[BlackElo "1739"]
[Result "0-1"]
[Round "08"]
[TimeControl "180+1"]
[Date "2022.06.01"]
[WhiteClock "0:00:16"]
[BlackClock "0:00:08"]

1. d4 {[%clk 0:03:00]}  d5 {[%clk 0:02:58]} 2. c4 {[%clk 0:02:59]}  e6 {[%clk 0:02:58]} 3. Nc3 {[%clk 0:02:58]}  c6 {[%clk 0:02:58]} 4. e3 {[%clk 0:02:56]}  Bd6 {[%clk 0:02:57]} 5. Bd3 {[%clk 0:02:53]}  f5 {[%clk 0:02:57]} 6. Nge2 {[%clk 0:02:51]}  Nf6 {[%clk 0:02:57]} 7. f3 {[%clk 0:02:51]}  O-O {[%clk 0:02:57]} 8. Qc2 {[%clk 0:02:51]}  dxc4 {[%clk 0:02:34]} 9. Bxc4 {[%clk 0:02:52]}  Kh8 {[%clk 0:02:33]} 10. O-O {[%clk 0:02:49]}  Qe7 {[%clk 0:02:30]} 11. Bb3 {[%clk 0:02:39]}  e5 {[%clk 0:02:25]} 12. dxe5 {[%clk 0:02:38]}  Bxe5 {[%clk 0:02:25]} 13. Bd2 {[%clk 0:02:32]}  Na6 {[%clk 0:02:23]} 14. Rae1 {[%clk 0:02:30]}  Nb4 {[%clk 0:02:17]} 15. Qb1 {[%clk 0:02:30]}  Rd8 {[%clk 0:02:13]} 16. Bc1 {[%clk 0:02:26]}  Be6 {[%clk 0:01:53]} 17. Nd4 {[%clk 0:02:23]}  Bxd4 {[%clk 0:01:47]} 18. exd4 {[%clk 0:02:24]}  Nbd5 {[%clk 0:01:47]} 19. Nxd5 {[%clk 0:02:22]}  Nxd5 {[%clk 0:01:45]} 20. Re5 {[%clk 0:02:17]}  Qf6 {[%clk 0:01:41]} 21. Rfe1 {[%clk 0:02:14]}  Rd6 {[%clk 0:01:32]} 22. Bxd5 {[%clk 0:02:02]}  Bxd5 {[%clk 0:01:28]} 23. Rxf5 {[%clk 0:02:00]}  Qxd4+ {[%clk 0:01:28]} 24. Be3 {[%clk 0:01:57]}  Qc4 {[%clk 0:01:17]} 25. Rh5 {[%clk 0:01:46]}  g6 {[%clk 0:00:56]} 26. b3 {[%clk 0:01:44]}  Qc3 {[%clk 0:00:50]} 27. Bf4 {[%clk 0:01:35]}  Qd4+ {[%clk 0:00:30]} 28. Kh1 {[%clk 0:01:31]}  Qxf4 {[%clk 0:00:28]} 29. Rhe5 {[%clk 0:01:29]}  Rf8 {[%clk 0:00:21]} 30. Qb2 {[%clk 0:01:28]}  Qf6 {[%clk 0:00:20]} 31. Qe2 {[%clk 0:01:27]}  Kg8 {[%clk 0:00:17]} 32. h3 {[%clk 0:01:24]}  b5 {[%clk 0:00:14]} 33. Qe3 {[%clk 0:01:24]}  a5 {[%clk 0:00:14]} 34. Qc5 {[%clk 0:01:19]}  Rd7 {[%clk 0:00:13]} 35. R1e3 {[%clk 0:01:12]}  Rdf7 {[%clk 0:00:11]} 36. a4 {[%clk 0:01:06]}  bxa4 {[%clk 0:00:11]} 37. bxa4 {[%clk 0:01:07]}  Qh4 {[%clk 0:00:06]} 38. Qxa5 {[%clk 0:01:04]}  Rb7 {[%clk 0:00:05]} 39. Re1 {[%clk 0:01:00]}  Bxf3 {[%clk 0:00:02]} 40. Kh2 {[%clk 0:00:56]}  Bd5 {[%clk 0:00:01]} 41. Re8 {[%clk 0:00:55]}  Qf4+ {[%clk 0:00:01]} 42. Kh1 {[%clk 0:00:54]}  Rxe8 {[%clk 0:00:02]} 43. Rxe8+ {[%clk 0:00:54]}  Kg7 {[%clk 0:00:02]} 44. Qc3+ {[%clk 0:00:52]}  Qf6 {[%clk 0:00:01]} 45. Rg8+ {[%clk 0:00:52]}  Bxg8 {[%clk 0:00:01]} 46. Qe1 {[%clk 0:00:48]}  Rb1 {[%clk 0:00:02]} 47. Qxb1 {[%clk 0:00:48]}  Bd5 {[%clk 0:00:03]} 48. Qg1 {[%clk 0:00:46]}  Qc3 {[%clk 0:00:02]} 49. Kh2 {[%clk 0:00:43]}  Qe5+ {[%clk 0:00:01]} 50. Kh1 {[%clk 0:00:43]}  Qf4 {[%clk 0:00:02]} 51. a5 {[%clk 0:00:42]}  Qa4 {[%clk 0:00:02]} 52. Qa7+ {[%clk 0:00:41]}  Kh6 {[%clk 0:00:01]} 53. Qe3+ {[%clk 0:00:41]}  Kg7 {[%clk 0:00:01]} 54. Qe7+ {[%clk 0:00:41]}  Bf7 {[%clk 0:00:01]} 55. Qe5+ {[%clk 0:00:41]}  Kg8 {[%clk 0:00:01]} 56. Qb8+ {[%clk 0:00:40]}  Kg7 {[%clk 0:00:02]} 57. Qe5+ {[%clk 0:00:40]}  Kh6 {[%clk 0:00:02]} 58. Qe3+ {[%clk 0:00:38]}  g5 {[%clk 0:00:02]} 59. Qe7 {[%clk 0:00:36]}  Bg6 {[%clk 0:00:02]} 60. Qf8+ {[%clk 0:00:35]}  Kh5 {[%clk 0:00:02]} 61. Qf2 {[%clk 0:00:21]}  Qa1+ {[%clk 0:00:01]} 62. Kh2 {[%clk 0:00:21]}  Qe5+ {[%clk 0:00:02]} 63. g3 {[%clk 0:00:22]}  g4 {[%clk 0:00:02]} 64. a6 {[%clk 0:00:21]}  c5 {[%clk 0:00:02]} 65. a7 {[%clk 0:00:21]}  Be4 {[%clk 0:00:02]} 66. Qf7+ {[%clk 0:00:17]}  Kg5 {[%clk 0:00:02]} 67. h4+ {[%clk 0:00:16]}  Kh6 {[%clk 0:00:02]} 68. Qf8+ {[%clk 0:00:16]}  Kg6 {[%clk 0:00:02]} 69. a8=Q {[%clk 0:00:14]}  Bxa8 {[%clk 0:00:02]} 70. Qxa8 {[%clk 0:00:13]}  Qe2+ {[%clk 0:00:03]} 71. Kh1 {[%clk 0:00:14]}  Qe1+ {[%clk 0:00:03]} 72. Kh2 {[%clk 0:00:14]}  Qf2+ {[%clk 0:00:03]} 73. Kh1 {[%clk 0:00:14]}  Qf1+ {[%clk 0:00:03]} 74. Kh2 {[%clk 0:00:14]}  Qh3+ {[%clk 0:00:04]} 75. Kg1 {[%clk 0:00:13]}  Qxg3+ {[%clk 0:00:05]} 76. Kh1 {[%clk 0:00:14]}  Qf3+ {[%clk 0:00:05]} 77. Qxf3 {[%clk 0:00:13]}  gxf3 {[%clk 0:00:06]} 78. Kg1 {[%clk 0:00:13]}  Kf5 {[%clk 0:00:07]} 79. Kf2 {[%clk 0:00:14]}  Kf4 {[%clk 0:00:07]} 80. h5 {[%clk 0:00:14]}  c4 {[%clk 0:00:08]} 81. h6 {[%clk 0:00:15]}  c3 {[%clk 0:00:08]} 82. Ke1 {[%clk 0:00:15]}  c2 {[%clk 0:00:09]} 83. Kf2 {[%clk 0:00:16]}  Kg4 {[%clk 0:00:08]} 0-1


[Site "https://www.chess.com"]